bitfinex/quotes_ETHUSD_20240811
["timestamp","ask_amount","ask_price","bid_price","bid_amount"]
[1723418362568,2.73341,2560.9,2560.3,4.140068]
[1723418362775,13.2994311,2561.5,2560.3,4.140068]
[1723418362776,2.73369,2560.7,2560.3,0.55]
[1723418363099,2.73369,2560.7,2560.2,0.55]
[1723418363273,2.73347,2560.9,2560.2,3.28409]
[1723418363597,2.73368,2560.7,2560.3,3.0]
[1723418363808,6.1136311,2561.4,2560.5,2.73378]
[1723418364108,25.32204703,2561.3,2560.7,2.73362]
[1723418364254,22.58899703,2561.3,2560.7,2.73362]
[1723418364610,2.5674597,2561.2,2560.7,2.81166464]
[1723418364905,5.3005797,2561.2,2560.5,5.54562467]
[1723418365199,1.18645084,2561.1,2560.5,2.73376]
[1723418365386,1.18645084,2561.1,2560.6,2.73366]
[1723418365901,1.18645084,2561.1,2560.4,0.07809886]
[1723418366068,1.18645084,2561.1,2560.5,0.55]
[1723418366267,1.18645084,2561.1,2560.5,3.28376]
[1723418366458,3.91966084,2561.1,2560.5,6.01754]
[1723418366658,1.18645084,2561.1,2560.6,2.81180895]
[1723418366896,3.91965084,2561.1,2560.6,2.73371]
[1723418367263,1.18645084,2561.1,2560.6,2.73371]
[1723418368395,1.18645084,2561.1,2560.6,2.73366]
[1723418369194,1.18645084,2561.1,2560.6,5.46733]
[1723418369394,22.42340673,2561.2,2560.7,2.73355]
[1723418369866,19.85594703,2561.2,2560.7,0.07809888]
[1723418370067,19.85594703,2561.2,2560.6,2.73366]
[1723418370283,2.73326,2561.1,2560.5,0.55]
[1723418370509,4.9921807,2561.1,2560.5,6.28381]
[1723418370708,2.73326,2561.1,2560.5,6.28381]
[1723418371443,2.73326,2561.1,2560.6,2.73372]
[1723418372420,22.58910703,2561.2,2560.6,2.73372]
[1723418372598,22.58910703,2561.2,2560.5,3.28379]
[1723418372599,22.58909703,2561.2,2560.5,3.28379]
[1723418372792,2.73351,2560.9,2560.3,2.2842]
[1723418373016,3.006861,2560.9,2560.3,2.2842]
[1723418373223,5.740341,2560.9,2560.3,5.01819]
[1723418373390,3.006821,2560.9,2560.3,5.01819]
[1723418374026,3.006821,2560.9,2560.4,2.73392]
[1723418374231,2.73347,2560.9,2560.4,2.73392]
[1723418374465,2.73325,2561.1,2560.5,0.07810558]
[1723418374777,19.85594703,2561.2,2560.6,2.73366]
[1723418374916,19.85594703,2561.2,2560.7,0.62809451]
[1723418375241,2.73308,2561.3,2560.8,2.73349]
[1723418375819,2.73311,2561.2,2560.7,0.55]
[1723418376032,2.73311,2561.2,2560.7,3.28361]
[1723418376622,2.73311,2561.2,2560.7,0.55]
[1723418377245,5.46626,2561.2,2560.7,0.55]
[1723418377623,2.73311,2561.2,2560.7,0.55]
[1723418379067,2.73311,2561.2,2560.7,3.28357]
[1723418380368,3.99226784,2561.2,2560.7,0.55]
[1723418380522,2.7332,2561.1,2560.7,0.55]
[1723418380725,2.7332,2561.1,2560.3,2.2842]
[1723418380726,1.25915784,2561.2,2560.2,5.7341]
[1723418380964,2.73372,2560.7,2560.2,3.0]
[1723418381169,2.73401,2560.4,2560.0,2.4842]
[1723418381459,2.73375,2560.6,2560.0,5.21847]
[1723418381660,2.73369,2560.7,2560.0,5.21847]
[1723418381868,2.73369,2560.7,2560.1,2.7342]
[1723418382166,2.73385,2560.5,2560.0,5.21847]
[1723418382486,2.73385,2560.5,2560.0,7.95278]
[1723418382767,2.73385,2560.5,2560.0,5.21847]
[1723418383350,2.73385,2560.5,2559.9,2.73445]
[1723418383525,2.73385,2560.5,2560.0,3.55]
[1723418383726,3.12275274,2560.5,2560.0,6.28437]
[1723418383951,2.73385,2560.5,2560.0,6.28437]
[1723418384180,3.88886741,2560.7,2560.0,6.28437]
[1723418384406,2.73379,2560.6,2560.0,6.28431]
[1723418384893,2.73379,2560.6,2560.1,2.73425]
[1723418385093,2.73369,2560.7,2560.2,2.73409]
[1723418385401,8.8181119,2560.9,2560.3,2.73405]
[1723418385758,2.73354,2560.8,2560.3,2.73405]
[1723418386158,2.73352,2560.8,2560.3,2.73405]
[1723418386399,3.7546987,2560.9,2560.5,2.73378]
[1723418386695,26.34383326,2561.1,2560.6,0.55]
[1723418386895,23.61062326,2561.1,2560.5,2.73375]
[1723418387052,23.61062326,2561.1,2560.6,2.81176731]
[1723418387257,22.58914703,2561.1,2560.6,2.73367]
[1723418388308,22.58914703,2561.1,2560.5,3.07863648]
[1723418388463,22.58914703,2561.1,2560.5,5.46753]
[1723418388999,22.58914703,2561.1,2560.5,2.73375]
[1723418389222,19.85594703,2561.1,2560.4,2.81193922]
[1723418389536,3.75421752,2561.2,2561.0,2.73324]
[1723418389833,6.48701752,2561.5,2561.0,3.006564]
[1723418389982,2.7328,2561.5,2561.0,2.73324]
[1723418390340,6.48639356,2561.6,2561.0,2.8113273]
[1723418390694,3.75366356,2561.6,2561.0,2.8113273]
[1723418390899,6.48627356,2561.7,2561.2,2.73308]
[1723418391115,0.27385749,2561.6,2561.2,2.73308]
[1723418391282,3.75962847,2561.8,2561.2,5.21188]
[1723418391488,0.00596491,2561.8,2561.4,2.73278]
[1723418391744,0.00596491,2561.8,2561.4,5.4656]
[1723418391891,0.00596491,2561.8,2561.2,5.21187]
[1723418392087,2.73268,2561.6,2561.0,5.21204]
[1723418392324,2.7328,2561.5,2561.1,3.0]
[1723418392693,2.73267,2561.6,2561.1,2.73318]
[1723418393211,2.73279,2561.5,2561.0,2.4788]
[1723418393710,0.27385849,2561.6,2561.0,2.4788]
[1723418393711,0.27385849,2561.6,2561.0,5.21206]
[1723418393915,3.00653849,2561.6,2561.0,5.21206]
[1723418394289,2.7328,2561.5,2561.0,2.4788]
[1723418395506,2.73304,2561.3,2560.8,2.81160301]
[1723418395705,4.02730186,2561.6,2561.0,2.73324]
[1723418395706,2.73272,2561.6,2561.0,2.73324]
[1723418395899,3.75344337,2561.7,2561.0,2.73324]
[1723418396090,2.73291,2561.4,2560.8,2.73342]
[1723418396293,0.273291,2561.3,2560.8,2.73342]
[1723418396498,2.73291,2561.4,2560.8,2.73342]
[1723418396723,2.73304,2561.3,2560.8,2.73342]
[1723418397929,2.73309,2561.2,2560.7,2.4788]
[1723418398135,2.73291,2561.4,2560.7,5.4788]
[1723418398295,9.6526,2561.5,2560.9,2.73335]
[1723418398717,7.27,2561.5,2560.8,3.28344]
[1723418398905,2.73307,2561.3,2560.7,5.4788]
[1723418399305,2.73315,2561.2,2560.7,5.4788]
[1723418400327,2.73303,2561.3,2560.7,5.4788]
[1723418400542,2.7331,2561.2,2560.4,2.3691]
[1723418400709,3.45994,2561.4,2560.8,2.73349]
[1723418400908,2.73298,2561.3,2560.8,2.73349]
[1723418401931,3.45994,2561.4,2560.8,2.73349]
[1723418402405,0.727,2561.4,2560.5,0.55]
[1723418402609,2.73332,2561.0,2560.5,3.07810034]
[1723418403127,2.73326,2561.1,2560.5,5.73383]
[1723418403128,5.46656,2561.1,2560.5,5.73383]
[1723418403438,2.73326,2561.1,2560.6,2.73373]
[1723418403605,5.46653,2561.1,2560.5,5.73382]
[1723418403998,1.072994,2561.3,2560.5,3.0]
[1723418404252,2.73315,2561.2,2560.6,5.46731]
[1723418404542,2.73315,2561.2,2560.6,2.73365]
[1723418405102,0.727,2561.4,2560.7,0.07810069]
[1723418405303,7.27,2561.5,2560.6,3.817325]
[1723418405499,2.73361,2560.8,2560.1,2.73417]
[1723418405703,2.73361,2560.8,2560.1,2.73419]
[1723418405932,2.73361,2560.8,2560.3,2.73398]
[1723418406138,2.73361,2560.8,2560.3,5.54606599]
[1723418406347,29.85931703,2561.0,2560.5,2.73382]
[1723418406639,29.85931703,2561.0,2560.5,2.73383]
[1723418407028,29.85931703,2561.0,2560.3,2.73395]
[1723418407230,29.85931703,2561.0,2560.4,0.55]
[1723418407445,29.85931703,2561.0,2560.4,3.28391]
[1723418407811,29.85931703,2561.0,2560.5,2.7338]
[1723418408458,29.85931703,2561.0,2560.4,3.28389]
[1723418408667,27.12594703,2561.0,2560.4,3.28389]
[1723418408828,27.12594703,2561.0,2560.6,2.73372]
[1723418409521,27.12594703,2561.0,2560.7,3.28361]
[1723418409725,2.73311,2561.2,2560.5,2.73376]
[1723418409934,5.46671,2561.0,2560.4,5.80786689]
[1723418410155,2.73347,2560.9,2560.2,5.73409]
[1723418410456,2.73332,2561.0,2560.4,2.73388]
[1723418410961,5.4667,2561.0,2560.4,2.73388]
[1723418411163,2.73332,2561.0,2560.4,2.73388]
[1723418411689,2.73353,2560.8,2560.3,3.28403]
[1723418411859,2.73348,2560.9,2560.3,0.55]
[1723418412059,2.73379,2560.6,2560.2,3.0]
[1723418412230,2.73368,2560.7,2560.1,5.4156]
[1723418412423,2.73368,2560.7,2560.2,2.73413]
[1723418412855,2.7338,2560.6,2560.1,5.4156]
[1723418413247,2.73368,2560.7,2560.1,8.1498]
[1723418413428,2.73368,2560.7,2560.1,9.238209]
[1723418413625,2.73368,2560.7,2560.1,6.504009]
[1723418413823,2.73379,2560.6,2560.1,6.504009]
[1723418414170,27.12594703,2560.9,2560.1,5.4156]
[1723418414171,2.73387,2560.5,2560.1,5.4156]
[1723418414364,5.46778,2560.5,2559.9,5.73442]
[1723418414559,2.73387,2560.5,2560.0,0.55]
[1723418415065,2.73387,2560.5,2559.8,5.12079]
[1723418415066,0.546755,2560.5,2559.8,5.12079]
[1723418415225,5.46825,2560.3,2559.6,5.46943]
[1723418415442,2.73416,2560.2,2559.6,2.7347]
[1723418415643,2.73433,2560.1,2559.6,0.50556]
[1723418415882,2.73416,2560.2,2559.6,3.24025]
[1723418416081,2.73416,2560.2,2559.7,2.73462]
[1723418416269,22.58994703,2560.4,2559.9,2.7344]
[1723418416466,22.58994703,2560.4,2559.8,2.7345]
[1723418416975,2.73408,2560.3,2559.8,2.7345]
[1723418417651,22.58994703,2560.4,2559.8,2.7345]
[1723418418043,22.58994703,2560.4,2559.8,5.46902]
[1723418418349,19.85594703,2560.4,2559.9,2.73441]
[1723418418551,19.85594703,2560.4,2560.2,2.73415]
[1723418418855,29.85951703,2560.8,2560.3,2.73402]
[1723418419056,27.12594703,2560.8,2560.3,2.73397]
[1723418419257,27.12594703,2560.8,2560.5,2.73376]
[1723418419589,27.12594703,2560.8,2560.5,7.83284]
[1723418419770,27.12594703,2560.8,2560.5,5.09906]
[1723418420174,27.12594703,2560.8,2560.5,2.3653]
[1723418420493,27.12594703,2560.8,2560.5,5.0991]
[1723418420650,12.46494,2561.3,2560.5,3.1767298]
[1723418420851,2.73315,2561.2,2560.7,2.73356]
[1723418421194,2.73321,2561.1,2560.6,0.07809621]
[1723418421547,2.73321,2561.1,2560.6,2.81176621]
[1723418422549,2.73321,2561.1,2560.6,0.07809621]
[1723418422749,2.73331,2561.0,2560.5,5.09904]
[1723418422994,3.279962,2561.0,2560.4,2.73392]
[1723418423197,2.73331,2561.0,2560.3,5.54606497]
[1723418423491,2.73343,2560.9,2560.4,3.0]
[1723418423697,2.73353,2560.8,2560.4,3.0]
[1723418424095,5.46711,2560.8,2560.4,3.0]
[1723418424287,5.777541,2560.8,2560.1,2.7342]
[1723418424476,5.777541,2560.8,2560.2,3.0]
[1723418425167,5.777541,2560.8,2560.2,3.07811107]
[1723418425406,5.23083,2560.8,2560.2,5.81225107]
[1723418425587,7.96441,2560.8,2560.2,5.81225107]
[1723418425763,2.73379,2560.6,2560.0,3.28435]
[1723418425965,2.73401,2560.4,2559.8,2.73457]
[1723418426164,2.73401,2560.4,2559.9,6.28447]
[1723418426502,2.73377,2560.6,2560.0,2.73431]
[1723418426675,2.73389,2560.5,2559.9,6.28441]
[1723418426864,2.73389,2560.5,2559.9,9.01883]
[1723418427298,2.73389,2560.5,2560.0,2.73435]
[1723418427498,2.73377,2560.6,2560.1,2.73426]
[1723418427699,5.46759,2560.6,2560.0,2.73431]
[1723418428197,19.85594703,2560.7,2560.1,2.73417]
[1723418428402,2.73375,2560.6,2560.1,2.73417]
[1723418428901,2.73375,2560.6,2560.0,6.16064066]
[1723418429272,2.73375,2560.6,2560.1,2.73426]
[1723418430589,19.85594703,2560.7,2560.2,2.73406]
[1723418431002,19.84485603,2560.7,2560.3,3.280814]
[1723418431373,19.84485603,2560.7,2560.4,2.73388]
[1723418431570,19.84485603,2560.7,2560.6,2.73373]
[1723418431769,27.11485603,2561.0,2560.6,3.280478]
[1723418432194,27.11485603,2561.0,2560.6,0.546748]
[1723418432507,27.11485603,2561.0,2560.7,2.73354]
[1723418432811,27.11485603,2561.0,2560.8,2.73352]
[1723418433178,27.11485603,2561.0,2560.9,2.73341]
[1723418433771,27.11485603,2561.0,2560.8,2.73351]
[1723418433975,27.11485603,2561.0,2560.8,3.28803659]
[1723418434264,27.11485603,2561.0,2560.9,2.73341]
[1723418434393,27.11485603,2561.0,2560.8,3.28798659]
[1723418434700,27.11485603,2561.0,2560.8,3.28796659]
[1723418435276,27.11485603,2561.0,2560.8,6.02142659]
[1723418435472,27.11485603,2561.0,2560.9,0.60214266]
[1723418435668,27.11485603,2561.0,2560.8,2.73344]
[1723418436070,27.11485603,2561.0,2560.7,2.7336]
[1723418436270,27.11485603,2561.0,2560.8,2.73346]
[1723418437084,27.11485603,2561.0,2560.5,7.86982]
[1723418437284,27.11485603,2561.0,2560.4,2.73393]
[1723418437478,27.11485603,2561.0,2560.3,2.73399]
[1723418437479,27.11485603,2561.0,2560.5,2.73384]
[1723418437681,5.0898,2561.1,2560.5,2.73384]
[1723418437910,6.32578,2561.1,2560.5,2.73384]
[1723418438300,5.0898,2561.1,2560.6,2.73372]
[1723418438518,2.3566,2561.1,2560.6,2.73372]
[1723418438696,7.27,2561.2,2560.4,0.07810398]
[1723418439037,7.27,2561.2,2560.8,2.73344]
[1723418439217,7.27,2561.2,2560.6,5.54542687]
[1723418439420,7.27,2561.2,2560.7,0.328368]
[1723418439935,7.27,2561.2,2560.8,2.73346]
[1723418440098,7.27,2561.2,2560.9,2.7334]
[1723418440795,7.27,2561.2,2560.8,2.7335]
[1723418440986,7.27,2561.2,2560.9,2.73335]
[1723418441228,19.84485603,2561.4,2560.9,5.46668]
[1723418441531,22.57774603,2561.4,2560.9,2.73333]
[1723418441907,19.84485603,2561.4,2560.9,2.73333]
[1723418442445,7.09213502,2561.3,2560.5,3.28378]
[1723418442732,2.73325,2561.1,2560.5,3.28378]
[1723418443446,2.73325,2561.1,2560.6,2.73371]
[1723418443733,2.73364,2560.7,2560.1,5.73425]
[1723418444202,2.73364,2560.7,2560.0,0.901872]
[1723418444203,5.46754,2560.6,2560.0,0.901872]
[1723418444541,5.46754,2560.6,2560.0,3.636222]
[1723418444542,5.46752,2560.6,2560.0,3.636222]
[1723418444693,2.73397,2560.4,2559.8,2.73454]
[1723418444889,2.73406,2560.3,2559.7,2.73463]
[1723418445129,2.73406,2560.3,2559.7,6.262684]
[1723418445697,2.73406,2560.3,2559.7,3.528054]
[1723418445927,2.73397,2560.4,2559.7,3.528054]
[1723418445928,2.73424,2560.2,2559.7,0.793424]
[1723418446136,2.73423,2560.2,2559.6,5.05238]
[1723418446335,2.73423,2560.2,2559.6,2.73478]
[1723418446829,2.73428,2560.1,2559.5,5.4697]
[1723418447127,2.73423,2560.2,2559.6,5.73478]
[1723418447901,2.73423,2560.2,2559.7,2.73468]
[1723418448409,2.73423,2560.2,2559.7,5.46931]
[1723418448604,19.84485603,2560.3,2559.7,2.73463]
[1723418448806,22.57896603,2560.3,2559.7,2.73463]
[1723418449024,19.84485603,2560.3,2559.7,2.73463]
[1723418449261,19.84485603,2560.3,2559.8,2.73455]
[1723418450107,22.57892603,2560.3,2559.7,3.385966]
[1723418450328,19.84485603,2560.3,2559.8,2.73456]
[1723418450536,22.57891603,2560.3,2559.8,2.73456]
[1723418450705,22.57891603,2560.3,2559.7,3.385966]
[1723418451227,2.73416,2560.2,2559.7,3.385966]
[1723418451547,2.73416,2560.2,2559.7,0.651336]
[1723418451859,2.73429,2560.1,2559.6,5.73479]
[1723418452006,2.73429,2560.1,2559.6,3.0]
[1723418452336,2.73428,2560.1,2559.6,3.0]
[1723418452706,2.73416,2560.2,2559.7,2.73468]
[1723418453111,5.05964,2560.1,2559.6,3.0]
[1723418454057,2.73438,2560.0,2559.5,3.51353]
[1723418454221,2.3253,2560.1,2559.6,0.55]
[1723418454421,2.3253,2560.1,2559.3,3.0]
[1723418454637,2.73453,2559.9,2559.4,0.55]
[1723418454846,2.73453,2559.9,2559.4,3.55]
[1723418455153,2.73443,2560.0,2559.4,6.285]
[1723418455351,5.05959,2560.1,2559.5,2.73484]
[1723418455662,22.19895603,2560.4,2559.9,2.73439]
[1723418455822,19.84485603,2560.4,2559.9,2.7344]
[1723418456026,19.84485603,2560.4,2560.0,0.546898]
[1723418456439,22.57880603,2560.4,2560.0,0.546898]
[1723418457349,22.57880603,2560.4,2559.9,2.73447]
[1723418457564,19.84485603,2560.4,2560.0,2.73428]
[1723418457911,19.84485603,2560.4,2559.9,0.0781198]
[1723418458163,19.84485603,2560.4,2559.8,2.73451]
[1723418458311,22.57881603,2560.4,2559.9,2.73448]
[1723418458514,2.73396,2560.4,2559.9,3.281379]
[1723418459451,7.27,2560.5,2560.0,2.73436]
[1723418459752,7.27,2560.5,2560.0,3.28427]
[1723418460319,2.73396,2560.4,2559.9,0.546899]
[1723418461433,7.27,2560.5,2560.0,0.3281419]
[1723418461629,7.27,2560.5,2560.1,2.3838]
[1723418461828,19.84485603,2560.6,2560.1,2.3838]
[1723418461829,19.84485603,2560.6,2560.3,2.73403]
[1723418463628,2.73364,2560.7,2560.1,7.85219]
[1723418463844,13.75888353,2560.8,2560.2,0.55]
[1723418464170,2.73374,2560.6,2560.0,2.73435]
[1723418464465,2.73374,2560.6,2559.9,2.73444]
[1723418464466,2.73395,2560.4,2559.9,2.73441]
[1723418464629,2.73395,2560.4,2560.0,0.55]
[1723418464827,5.46797,2560.4,2560.0,0.55]
[1723418465032,2.73395,2560.4,2559.7,2.73461]
[1723418465234,3.240005,2560.4,2559.7,2.73461]
[1723418465432,5.46796,2560.4,2559.8,2.73458]
[1723418465645,2.73395,2560.4,2559.8,2.73458]
[1723418465862,5.46796,2560.4,2559.8,2.73458]
[1723418466214,2.73406,2560.3,2559.7,5.46923]
[1723418466488,2.73395,2560.4,2559.7,3.3343794]
[1723418466489,2.73417,2560.2,2559.7,3.3343794]
[1723418467274,2.734,2560.4,2559.8,2.73454]
[1723418467457,2.734,2560.4,2559.9,0.60689194]
[1723418468504,6.48906897,2560.6,2559.9,0.68501563]
[1723418468505,3.75529897,2560.6,2559.9,0.68501563]
[1723418468670,2.73387,2560.5,2560.0,3.2843]
[1723418468870,3.75529897,2560.6,2560.0,3.2843]
[1723418469174,11.02529897,2560.8,2560.3,5.01862]
[1723418469500,2.73369,2560.7,2560.1,3.34387948]
[1723418469667,7.27,2560.8,2560.2,0.55]
[1723418470073,7.27,2560.8,2560.3,2.81206441]
[1723418470381,7.27,2560.8,2560.5,2.73382]
[1723418472582,7.27,2560.8,2560.4,3.01512644]
[1723418472896,7.27,2560.8,2560.2,2.7341]
[1723418473413,11.02465183,2560.8,2560.2,2.7341]
[1723418473599,7.27,2560.8,2560.4,2.73394]
[1723418474169,7.27,2560.8,2560.2,5.46822]
[1723418474370,10.00353,2560.8,2560.3,3.062445]
[1723418474593,7.27,2560.8,2560.3,3.062445]
[1723418474803,7.27,2560.8,2560.4,2.73392]
[1723418475924,7.27,2560.8,2560.4,3.12402141]
[1723418476798,7.27,2560.8,2560.3,0.328415]
[1723418477045,7.27,2560.8,2560.1,0.55]
[1723418477046,2.73379,2560.6,2560.1,0.55]
[1723418477186,6.06170672,2560.7,2559.8,4.99011]
[1723418477504,8.0941007,2560.6,2559.8,2.73451]
[1723418477686,2.7341,2560.3,2559.8,2.73451]
[1723418478306,2.73421,2560.2,2559.6,4.99032]
[1723418478790,2.7341,2560.3,2559.8,2.73453]
[1723418479292,2.3677,2560.2,2559.7,5.73464]
[1723418479807,2.73433,2560.1,2559.5,2.73489]
[1723418480044,2.73454,2559.9,2559.4,2.73495]
[1723418480544,2.73491,2559.5,2558.8,2.73559]
[1723418480695,2.4948,2559.7,2559.1,2.73533]
[1723418480696,2.73483,2559.6,2559.1,2.73533]
[1723418480898,6.25048932,2560.0,2559.5,2.73487]
[1723418481103,6.25048932,2560.0,2559.5,2.73485]
[1723418481341,2.4948,2560.0,2559.5,2.73485]
[1723418481696,2.4948,2560.0,2559.5,5.46969]
[1723418482097,5.22919,2560.0,2559.5,2.73484]
[1723418482337,2.73433,2560.1,2559.5,3.51894415]
[1723418482647,2.73438,2560.0,2559.5,3.51894415]
[1723418482793,2.73433,2560.1,2559.5,3.51894415]
[1723418483615,5.46866,2560.1,2559.5,3.51894415]
[1723418483866,2.7344,2560.0,2559.5,3.51894415]
[1723418484161,2.73433,2560.1,2559.3,5.02806]
[1723418484162,2.73456,2559.9,2559.3,7.7631]
[1723418484653,2.73456,2559.9,2559.4,2.73501]
[1723418485322,2.73455,2559.9,2559.3,5.02804]
[1723418485523,2.73455,2559.9,2559.3,5.530844]
[1723418487235,2.73455,2559.9,2559.4,2.73499]
[1723418487837,2.73432,2560.1,2559.6,2.73472]
[1723418488037,5.46866,2560.1,2559.6,2.73472]
[1723418488340,2.73432,2560.1,2559.6,2.73472]
[1723418488926,2.376,2560.2,2559.6,6.02423156]
[1723418489128,1.98758631,2560.1,2559.6,6.02423156]
[1723418489337,2.376,2560.2,2559.7,2.73468]
[1723418489517,2.73411,2560.3,2559.8,2.73456]
[1723418490118,2.73411,2560.3,2559.8,5.46909]
[1723418490318,12.4167,2560.5,2559.8,3.34472955]
[1723418490682,12.4167,2560.5,2559.8,0.61019955]
[1723418490683,1.98743412,2560.4,2559.8,0.61019955]
[1723418490889,9.6828,2560.5,2559.5,5.08653]
[1723418490890,2.73415,2560.3,2559.5,5.08653]
[1723418491051,13.4383221,2560.5,2559.5,5.08653]
[1723418491052,2.73421,2560.2,2559.5,5.08653]
[1723418491383,2.73443,2560.0,2559.5,5.08653]
[1723418492274,2.73422,2560.2,2559.5,5.08653]
[1723418492275,2.73422,2560.2,2559.6,2.81286075]
[1723418492433,2.73422,2560.2,2559.6,2.73473]
[1723418492640,2.73401,2560.4,2559.8,2.73456]
[1723418492838,2.73401,2560.4,2559.8,3.28928805]
[1723418493075,2.73379,2560.6,2559.9,2.8133]
[1723418493286,2.73379,2560.6,2560.0,2.7343]
[1723418493441,5.46762,2560.6,2560.1,0.55]
[1723418493775,16.08110877,2560.8,2560.2,2.7341]
[1723418493982,1.9871813,2560.7,2560.3,2.81215115]
[1723418494182,1.9871813,2560.7,2560.2,2.7341]
[1723418494183,1.9871813,2560.7,2560.2,5.54630115]
[1723418494426,2.73363,2560.7,2560.2,2.81220115]
[1723418494590,2.73374,2560.6,2560.1,1.15976]
[1723418494884,2.73374,2560.6,2559.9,2.2633]
[1723418495089,2.7342,2560.2,2559.6,5.15411]
[1723418495243,2.7342,2560.2,2559.5,3.0]
[1723418495579,2.7343,2560.1,2559.6,2.73474]
[1723418495991,3.75506671,2560.5,2559.7,2.3826]
[1723418495992,2.734,2560.4,2559.7,2.3826]
[1723418496482,2.734,2560.4,2559.8,2.73452]
[1723418496641,2.734,2560.4,2559.8,3.28452]
[1723418496841,2.73377,2560.6,2560.0,2.73427]
[1723418497085,1.98731444,2560.5,2560.0,2.73427]
[1723418497286,1.98731444,2560.5,2560.0,3.07050901]
[1723418497489,2.73385,2560.5,2560.0,3.07050901]
[1723418497787,2.73394,2560.4,2559.9,2.73445]
[1723418498157,2.73377,2560.6,2559.9,2.73445]
[1723418498359,2.73395,2560.4,2559.9,0.840159]
[1723418498576,2.73412,2560.3,2559.7,2.3826]
[1723418498814,2.73419,2560.2,2559.6,6.316409]
[1723418498977,2.73422,2560.2,2559.7,2.73469]
[1723418499580,2.73439,2560.0,2559.6,0.846969]
[1723418499818,2.73439,2560.0,2559.6,3.0]
[1723418500118,2.7342,2560.2,2559.6,2.73479]
[1723418500464,5.46842,2560.2,2559.6,2.73479]
[1723418500685,2.7342,2560.2,2559.6,3.813614]
[1723418500968,2.73429,2560.1,2559.6,1.078824]
[1723418501164,2.7344,2560.0,2559.6,1.078824]
[1723418501388,2.73451,2559.9,2559.5,3.0]
[1723418501612,2.73451,2559.9,2559.4,2.3186]
[1723418501613,2.73451,2559.9,2559.4,5.3186]
[1723418501931,2.73427,2560.1,2559.5,3.28489]
[1723418502209,5.4689,2560.0,2559.5,0.55]
[1723418502414,2.73443,2560.0,2559.5,2.73489]
[1723418502624,2.73421,2560.2,2559.6,2.73471]
[1723418502790,2.73427,2560.1,2559.5,6.248582]
[1723418503113,5.46842,2560.2,2559.6,2.73476]
[1723418503320,5.46843,2560.2,2559.6,2.73476]
[1723418503493,2.73428,2560.1,2559.6,2.73476]
[1723418503687,2.73428,2560.1,2559.6,0.8567052]
[1723418504292,2.73421,2560.2,2559.6,3.5914852]
[1723418504491,2.73432,2560.1,2559.6,0.8567052]
[1723418505295,2.73448,2559.9,2559.6,0.8567052]
[1723418505581,2.73448,2559.9,2559.4,5.05356]
[1723418505784,2.73448,2559.9,2559.5,0.55]
[1723418506421,2.73469,2559.7,2559.4,2.3186]
[1723418507001,2.73469,2559.7,2559.3,3.0]
[1723418507897,2.73448,2559.9,2559.3,6.809682]
[1723418508095,2.73471,2559.7,2559.3,3.0]
[1723418508302,2.4105,2559.8,2559.3,2.73511]
[1723418508505,2.73448,2559.9,2559.3,2.73505]
[1723418508813,2.73448,2559.9,2559.3,3.536085]
[1723418509397,2.73459,2559.8,2559.3,3.536085]
[1723418509602,2.73448,2559.9,2559.3,3.536045]
[1723418509904,6.49038353,2560.1,2559.5,2.73485]
[1723418510104,2.73432,2560.1,2559.6,5.61013]
[1723418510305,22.31315603,2560.2,2559.6,0.55]
[1723418510508,29.67654252,2560.2,2559.6,0.55]
[1723418510831,29.67654252,2560.2,2559.5,0.55]
[1723418511032,26.06921956,2560.2,2559.5,0.55]
[1723418511536,19.84485603,2560.2,2559.6,2.73473]
[1723418511733,19.84485603,2560.2,2559.8,2.73458]
[1723418511886,19.84485603,2560.2,2559.6,2.73469]
[1723418512222,3.75560611,2560.2,2559.8,2.73452]
[1723418512418,19.84485603,2560.3,2559.9,2.73445]
[1723418512617,1.35202029,2560.2,2559.8,5.46905]
[1723418512923,13.75963343,2560.4,2559.8,5.46905]
[1723418512924,3.75568343,2560.4,2559.9,0.62502638]
[1723418513085,12.28,2560.7,2560.1,2.3106]
[1723418513420,3.75568343,2561.0,2560.6,5.20613]
[1723418513583,7.27,2561.2,2560.7,0.520613]
[1723418513784,3.75414187,2561.2,2560.6,2.4724]
[1723418514096,2.3889,2561.3,2560.4,2.73394]
[1723418514097,2.73337,2561.0,2560.4,2.73394]
[1723418514300,2.73342,2560.9,2560.4,2.73394]
[1723418514626,3.75414187,2561.1,2560.4,2.73394]
[1723418514809,3.75414187,2561.1,2560.6,2.73366]
[1723418515016,3.75414187,2561.1,2560.7,2.3288]
[1723418515315,2.7332,2561.1,2560.6,2.73364]
[1723418515526,8.87602187,2561.3,2560.7,2.73362]
[1723418515818,6.14304187,2561.3,2560.9,2.73338]
[1723418516009,3.75414187,2561.5,2561.0,2.73329]
[1723418516518,2.73289,2561.4,2560.9,5.06218]
[1723418516683,3.89931819,2561.5,2561.0,0.55]
[1723418517017,2.73294,2561.4,2561.0,0.55]
[1723418517589,2.4625,2561.2,2560.6,2.4969]
[1723418517784,2.4625,2561.2,2560.3,2.4969]
[1723418517989,2.73353,2560.8,2560.2,5.73415]
[1723418518217,2.73346,2560.9,2560.3,2.73397]
[1723418518596,2.73333,2561.0,2560.4,2.73388]
[1723418518893,2.73322,2561.1,2560.6,2.73373]
[1723418519208,2.73322,2561.1,2560.5,5.23073]
[1723418519397,2.73322,2561.1,2560.6,0.55]
[1723418520440,2.73342,2560.9,2560.2,2.3834]
[1723418520587,3.526132,2561.1,2560.6,2.73373]
[1723418520787,2.73342,2560.9,2560.4,2.73387]
[1723418521118,2.73342,2560.9,2560.3,0.55]
[1723418521119,2.73354,2560.8,2560.2,5.11751]